[Event "Late-Titled-Tuesday-Blitz-June-25-2024"]
[Site "Chess.com"]
[Date "2024.06.25"]
[Round "3"]
[White "FMOlexandrProhorov"]
[Black "Boudicca64"]
[Result "1-0"]
[WhiteElo "2363"]
[BlackElo "1942"]
[TimeControl "180+1"]
[EndTime "14:27:02 PDT"]
[Termination "FMOlexandrProhorov won by checkmate"]

1. c4 {[%clk 0:01:20]} 1... Nf6 {[%clk 0:02:56.2]} 2. Nc3 {[%clk 0:01:12.8]}
2... g6 {[%clk 0:02:54.7]} 3. g3 {[%clk 0:01:12.3]} 3... Bg7 {[%clk 0:02:54]} 4.
Bg2 {[%clk 0:01:12.9]} 4... O-O {[%clk 0:02:53.9]} 5. d3 {[%clk 0:01:13.4]} 5...
c5 {[%clk 0:02:53.9]} 6. h4 {[%clk 0:01:13.2]} 6... h5 {[%clk 0:02:47.6]} 7. Nh3
{[%clk 0:01:13]} 7... Nc6 {[%clk 0:02:43.1]} 8. Nf4 {[%clk 0:01:11.6]} 8... a6
{[%clk 0:02:39.7]} 9. O-O {[%clk 0:01:10.8]} 9... Rb8 {[%clk 0:02:37.4]} 10. a4
{[%clk 0:01:11]} 10... d6 {[%clk 0:02:32.8]} 11. Bd2 {[%clk 0:01:10]} 11... Bd7
{[%clk 0:02:30.9]} 12. Rb1 {[%clk 0:01:08.6]} 12... Nb4 {[%clk 0:02:28.2]} 13.
Ncd5 {[%clk 0:01:03.4]} 13... Nbxd5 {[%clk 0:02:16.5]} 14. cxd5 {[%clk
0:01:03.7]} 14... b5 {[%clk 0:02:15.2]} 15. axb5 {[%clk 0:01:01.1]} 15... axb5
{[%clk 0:02:13.5]} 16. b4 {[%clk 0:01:01]} 16... c4 {[%clk 0:02:02.3]} 17. dxc4
{[%clk 0:00:57]} 17... bxc4 {[%clk 0:02:00.8]} 18. Qc1 {[%clk 0:00:56.2]} 18...
Qc7 {[%clk 0:01:58.1]} 19. Bc3 {[%clk 0:00:51.6]} 19... Rfc8 {[%clk 0:01:45.8]}
20. Qb2 {[%clk 0:00:41.4]} 20... Bf5 {[%clk 0:01:41.5]} 21. Ra1 {[%clk 0:00:41]}
21... Ra8 {[%clk 0:01:33.9]} 22. f3 {[%clk 0:00:40]} 22... Qb7 {[%clk
0:01:25.9]} 23. e4 {[%clk 0:00:39.3]} 23... Bd7 {[%clk 0:01:23]} 24. Kh2 {[%clk
0:00:38.1]} 24... Ba4 {[%clk 0:01:20.5]} 25. Rfe1 {[%clk 0:00:37.1]} 25... Bb3
{[%clk 0:01:18.9]} 26. Ne2 {[%clk 0:00:35.9]} 26... Rxa1 {[%clk 0:01:01.4]} 27.
Rxa1 {[%clk 0:00:35.3]} 27... Ra8 {[%clk 0:01:00.9]} 28. Nd4 {[%clk 0:00:35.5]}
28... Nd7 {[%clk 0:00:45.7]} 29. Nc6 {[%clk 0:00:32.9]} 29... Nc5 {[%clk
0:00:43]} 30. bxc5 {[%clk 0:00:30.4]} 30... Bxc3 {[%clk 0:00:40.8]} 31. Qxc3
{[%clk 0:00:30.2]} 31... dxc5 {[%clk 0:00:40.3]} 32. Rxa8+ {[%clk 0:00:27.8]}
32... Qxa8 {[%clk 0:00:38.6]} 33. Nxe7+ {[%clk 0:00:28.5]} 33... Kf8 {[%clk
0:00:38.3]} 34. Qh8+ {[%clk 0:00:28.6]} 34... Kxe7 {[%clk 0:00:36.7]} 35. Qxa8
{[%clk 0:00:28.6]} 35... Kd6 {[%clk 0:00:35.4]} 36. Qc6+ {[%clk 0:00:28.4]}
36... Ke5 {[%clk 0:00:34.2]} 37. Qxc5 {[%clk 0:00:28.8]} 37... f5 {[%clk
0:00:28.2]} 38. f4+ {[%clk 0:00:29.7]} 38... Kf6 {[%clk 0:00:26.5]} 39. e5+
{[%clk 0:00:30.3]} 39... Kf7 {[%clk 0:00:25.4]} 40. Qc7+ {[%clk 0:00:30.2]}
40... Ke8 {[%clk 0:00:23.9]} 41. d6 {[%clk 0:00:29.8]} 41... Ba4 {[%clk
0:00:22.3]} 42. Qe7# {[%clk 0:00:30.2]} 1-0

[Event "Late-Titled-Tuesday-Blitz-June-25-2024"]
[Site "Chess.com"]
[Date "2024.06.25"]
[Round "3"]
[White "Sanan_Sjugirov"]
[Black "komogro"]
[Result "1-0"]
[WhiteElo "3000"]
[BlackElo "2517"]
[TimeControl "180+1"]
[EndTime "14:27:05 PDT"]
[Termination "Sanan_Sjugirov won on time"]

1. e4 {[%clk 0:03:00.9]} 1... g6 {[%clk 0:02:56.2]} 2. d4 {[%clk 0:03:00.7]}
2... Bg7 {[%clk 0:02:56.5]} 3. Nc3 {[%clk 0:03:00.5]} 3... c6 {[%clk 0:02:56.6]}
4. f4 {[%clk 0:02:52.6]} 4... d5 {[%clk 0:02:56.5]} 5. e5 {[%clk 0:02:52.9]}
5... h5 {[%clk 0:02:56.6]} 6. Nf3 {[%clk 0:02:49.8]} 6... Bg4 {[%clk 0:02:56.2]}
7. h3 {[%clk 0:02:39.1]} 7... Bxf3 {[%clk 0:02:55.8]} 8. Qxf3 {[%clk 0:02:40]}
8... h4 {[%clk 0:02:53.3]} 9. Bd3 {[%clk 0:02:32.4]} 9... e6 {[%clk 0:02:51.4]}
10. O-O {[%clk 0:02:32.7]} 10... Nh6 {[%clk 0:02:49.1]} 11. Be3 {[%clk 0:02:30]}
11... Nf5 {[%clk 0:02:44.8]} 12. Bf2 {[%clk 0:02:30.6]} 12... Nd7 {[%clk
0:02:42.6]} 13. Ne2 {[%clk 0:02:20.1]} 13... Qc7 {[%clk 0:02:40]} 14. c4 {[%clk
0:02:06.1]} 14... Bf8 {[%clk 0:02:34.7]} 15. c5 {[%clk 0:01:55.2]} 15... Be7
{[%clk 0:02:32.1]} 16. b4 {[%clk 0:01:55.8]} 16... b5 {[%clk 0:02:28.8]} 17. a4
{[%clk 0:01:55.1]} 17... bxa4 {[%clk 0:02:16.5]} 18. Rxa4 {[%clk 0:01:56]} 18...
O-O {[%clk 0:01:57.1]} 19. Rfa1 {[%clk 0:01:54.2]} 19... Rfb8 {[%clk 0:01:54.5]}
20. Kh1 {[%clk 0:01:47.4]} 20... Nf8 {[%clk 0:01:35.8]} 21. Nc3 {[%clk
0:01:47.6]} 21... Rb7 {[%clk 0:01:18]} 22. b5 {[%clk 0:01:47]} 22... cxb5 {[%clk
0:01:07.4]} 23. Nxb5 {[%clk 0:01:47.9]} 23... Qb8 {[%clk 0:01:02.3]} 24. Nd6
{[%clk 0:01:46.1]} 24... Rb3 {[%clk 0:00:57.2]} 25. Qd1 {[%clk 0:01:41.3]} 25...
Bd8 {[%clk 0:00:34.2]} 26. Bc2 {[%clk 0:01:28.9]} 26... Rb4 {[%clk 0:00:31.3]}
27. Rxb4 {[%clk 0:00:53]} 27... Qxb4 {[%clk 0:00:32.2]} 28. Qd3 {[%clk
0:00:52.7]} 28... Qb8 {[%clk 0:00:09.4]} 29. Rb1 {[%clk 0:00:50.1]} 29... Qc7
{[%clk 0:00:05.7]} 30. Qb3 {[%clk 0:00:46.9]} 30... Qa5 {[%clk 0:00:03.9]} 31.
Bxf5 {[%clk 0:00:32.3]} 31... gxf5 {[%clk 0:00:03.8]} 32. Qb7 {[%clk 0:00:32.8]}
32... Qc7 {[%clk 0:00:01.8]} 33. Qxa8 {[%clk 0:00:32.6]} 1-0

[Event "Late-Titled-Tuesday-Blitz-June-25-2024"]
[Site "Chess.com"]
[Date "2024.06.25"]
[Round "3"]
[White "sergiochess83"]
[Black "AGW2016"]
[Result "1-0"]
[WhiteElo "2838"]
[BlackElo "2552"]
[TimeControl "180+1"]
[EndTime "14:27:06 PDT"]
[Termination "sergiochess83 won by resignation"]

1. d4 {[%clk 0:02:52.8]} 1... Nf6 {[%clk 0:02:58.4]} 2. c4 {[%clk 0:02:53.1]}
2... e6 {[%clk 0:02:58.5]} 3. Nc3 {[%clk 0:02:53.7]} 3... d5 {[%clk 0:02:59.3]}
4. cxd5 {[%clk 0:02:53.5]} 4... exd5 {[%clk 0:02:59.6]} 5. Bg5 {[%clk 0:02:54]}
5... h6 {[%clk 0:02:56.6]} 6. Bxf6 {[%clk 0:02:43.7]} 6... Qxf6 {[%clk
0:02:56.8]} 7. Nxd5 {[%clk 0:02:44]} 7... Qd8 {[%clk 0:02:56.9]} 8. Nc3 {[%clk
0:02:43.7]} 8... Bd6 {[%clk 0:02:54.7]} 9. e3 {[%clk 0:02:42.9]} 9... O-O {[%clk
0:02:55.4]} 10. Nf3 {[%clk 0:02:42.2]} 10... Nd7 {[%clk 0:02:51.8]} 11. g3
{[%clk 0:02:29.8]} 11... c5 {[%clk 0:02:48.6]} 12. Bg2 {[%clk 0:02:29.4]} 12...
Nf6 {[%clk 0:02:45.3]} 13. O-O {[%clk 0:02:28]} 13... Bf5 {[%clk 0:02:44.8]} 14.
Qb3 {[%clk 0:02:00]} 14... Rb8 {[%clk 0:02:37.5]} 15. Rfd1 {[%clk 0:01:56.5]}
15... Qe7 {[%clk 0:02:37]} 16. Nb5 {[%clk 0:01:44.3]} 16... a6 {[%clk
0:02:17.7]} 17. Nxd6 {[%clk 0:01:42]} 17... Qxd6 {[%clk 0:02:18.6]} 18. Qa3
{[%clk 0:01:23]} 18... Rbc8 {[%clk 0:02:07.2]} 19. dxc5 {[%clk 0:01:18.1]} 19...
Qxc5 {[%clk 0:02:06.3]} 20. Qxc5 {[%clk 0:01:17.7]} 20... Rxc5 {[%clk
0:02:07.2]} 21. Nd4 {[%clk 0:01:17.9]} 21... Be4 {[%clk 0:02:07.4]} 22. f3
{[%clk 0:01:15.5]} 22... Bd5 {[%clk 0:01:59.1]} 23. a3 {[%clk 0:00:49.9]} 23...
Rfc8 {[%clk 0:01:58.6]} 24. Kf2 {[%clk 0:00:49.3]} 24... Kf8 {[%clk 0:01:52.4]}
25. Rd2 {[%clk 0:00:49.5]} 25... Be6 {[%clk 0:01:51.3]} 26. Rad1 {[%clk
0:00:43.3]} 26... Ke7 {[%clk 0:01:49.9]} 27. e4 {[%clk 0:00:36.7]} 27... b5
{[%clk 0:01:47.9]} 28. h3 {[%clk 0:00:35.7]} 28... g5 {[%clk 0:01:38]} 29. f4
{[%clk 0:00:34.9]} 29... gxf4 {[%clk 0:01:37.5]} 30. gxf4 {[%clk 0:00:35.8]}
30... Nh5 {[%clk 0:01:35.6]} 31. Ke3 {[%clk 0:00:29.5]} 31... Rg8 {[%clk
0:01:36.2]} 32. Bf3 {[%clk 0:00:24]} 32... Nf6 {[%clk 0:01:25.6]} 33. f5 {[%clk
0:00:22.4]} 33... Bd7 {[%clk 0:01:26]} 34. Kf4 {[%clk 0:00:21.6]} 34... Rgc8
{[%clk 0:01:06.8]} 35. e5 {[%clk 0:00:20.6]} 35... Nd5+ {[%clk 0:01:07]} 36.
Bxd5 {[%clk 0:00:19.3]} 36... Rxd5 {[%clk 0:01:07.9]} 37. f6+ {[%clk 0:00:13.3]}
37... Ke8 {[%clk 0:01:06.8]} 38. Rg1 {[%clk 0:00:11.2]} 38... Kd8 {[%clk
0:01:06.4]} 39. Rg8+ {[%clk 0:00:10.4]} 39... Kc7 {[%clk 0:01:06.8]} 40. Rxc8+
{[%clk 0:00:08]} 40... Bxc8 {[%clk 0:01:07.1]} 41. h4 {[%clk 0:00:08]} 41... Kb6
{[%clk 0:01:06.2]} 42. b4 {[%clk 0:00:07.2]} 42... a5 {[%clk 0:01:06]} 43. Nb3
{[%clk 0:00:05.9]} 43... Rxd2 {[%clk 0:01:04.2]} 44. Nxd2 {[%clk 0:00:06.8]}
44... a4 {[%clk 0:01:01.9]} 45. Ke4 {[%clk 0:00:06.5]} 45... Kc6 {[%clk
0:01:01.2]} 46. Kd4 {[%clk 0:00:07]} 46... Bf5 {[%clk 0:01:00.6]} 47. Ne4 {[%clk
0:00:07.1]} 47... Be6 {[%clk 0:01:00.4]} 48. Nd6 {[%clk 0:00:06.7]} 48... Bd5
{[%clk 0:01:00.6]} 49. Ke3 {[%clk 0:00:06.1]} 49... Be6 {[%clk 0:01:00.9]} 50.
Kd4 {[%clk 0:00:06.8]} 50... Bd5 {[%clk 0:01:00.9]} 51. Nxb5 {[%clk 0:00:07.1]}
51... Bb3 {[%clk 0:00:59.3]} 52. Nc3 {[%clk 0:00:07.2]} 52... Be6 {[%clk
0:00:59.9]} 53. Nxa4 {[%clk 0:00:07]} 1-0

[Event "Late-Titled-Tuesday-Blitz-June-25-2024"]
[Site "Chess.com"]
[Date "2024.06.25"]
[Round "3"]
[White "NigiriSushies"]
[Black "Orest_Vovk"]
[Result "0-1"]
[WhiteElo "2300"]
[BlackElo "2559"]
[TimeControl "180+1"]
[EndTime "14:27:09 PDT"]
[Termination "Orest_Vovk won on time"]

1. Nf3 {[%clk 0:02:59.4]} 1... h6 {[%clk 0:02:52.9]} 2. g3 {[%clk 0:02:54.9]}
2... g5 {[%clk 0:02:53.1]} 3. h3 {[%clk 0:02:50.9]} 3... Bg7 {[%clk 0:02:52.6]}
4. Bg2 {[%clk 0:02:50.5]} 4... d6 {[%clk 0:02:52.8]} 5. d4 {[%clk 0:02:46.1]}
5... g4 {[%clk 0:02:53.1]} 6. hxg4 {[%clk 0:02:44.5]} 6... Bxg4 {[%clk 0:02:54]}
7. b3 {[%clk 0:02:43]} 7... c5 {[%clk 0:02:52.1]} 8. Bb2 {[%clk 0:02:40.2]} 8...
Nc6 {[%clk 0:02:50.2]} 9. e3 {[%clk 0:02:24.7]} 9... Qa5+ {[%clk 0:02:43.4]} 10.
Bc3 {[%clk 0:02:01.1]} 10... Qa6 {[%clk 0:02:30.1]} 11. dxc5 {[%clk 0:01:18.1]}
11... Bxc3+ {[%clk 0:02:19.3]} 12. Nxc3 {[%clk 0:01:19]} 12... O-O-O {[%clk
0:02:14]} 13. Qd3 {[%clk 0:00:45.4]} 13... Qa5 {[%clk 0:01:53.9]} 14. O-O {[%clk
0:00:39.7]} 14... dxc5 {[%clk 0:01:52.5]} 15. Nd5 {[%clk 0:00:15.6]} 15... Bxf3
{[%clk 0:01:46.5]} 16. Bxf3 {[%clk 0:00:13.6]} 16... e6 {[%clk 0:01:46.1]} 17.
Qc3 {[%clk 0:00:13.4]} 17... Qxc3 {[%clk 0:01:41.3]} 18. Nxc3 {[%clk 0:00:14.3]}
18... Nb4 {[%clk 0:01:41.6]} 19. Rac1 {[%clk 0:00:11]} 19... Rd2 {[%clk
0:01:39.9]} 20. a3 {[%clk 0:00:09.1]} 20... Na6 {[%clk 0:01:27.6]} 21. Ne4
{[%clk 0:00:08.6]} 21... Rd7 {[%clk 0:01:23.3]} 22. Rfd1 {[%clk 0:00:08.3]}
22... Ne7 {[%clk 0:01:19.2]} 23. Nd6+ {[%clk 0:00:08.1]} 23... Kc7 {[%clk
0:01:14.5]} 24. Nxf7 {[%clk 0:00:06]} 24... Rxd1+ {[%clk 0:01:14.1]} 25. Rxd1
{[%clk 0:00:06.2]} 25... Rf8 {[%clk 0:01:15]} 26. Ne5 {[%clk 0:00:06.4]} 26...
Nb8 {[%clk 0:01:07.5]} 27. Kg2 {[%clk 0:00:05.2]} 27... Rf5 {[%clk 0:01:01.1]}
28. Nc4 {[%clk 0:00:03.4]} 28... Nbc6 {[%clk 0:00:55.2]} 29. Nd6 {[%clk
0:00:03.7]} 29... Rf8 {[%clk 0:00:49]} 30. Ne4 {[%clk 0:00:02]} 30... Ne5 {[%clk
0:00:45.8]} 31. Be2 {[%clk 0:00:01.2]} 31... b6 {[%clk 0:00:46.4]} 32. Nd6
{[%clk 0:00:01.2]} 32... Nd5 {[%clk 0:00:38.1]} 33. Nb5+ {[%clk 0:00:01.5]}
33... Kb7 {[%clk 0:00:37.9]} 34. c4 {[%clk 0:00:01.7]} 34... Nf6 {[%clk
0:00:34.7]} 0-1

[Event "Late-Titled-Tuesday-Blitz-June-25-2024"]
[Site "Chess.com"]
[Date "2024.06.25"]
[Round "3"]
[White "hansen"]
[Black "Crazy_girl99"]
[Result "1/2-1/2"]
[WhiteElo "2986"]
[BlackElo "2702"]
[TimeControl "180+1"]
[EndTime "14:27:11 PDT"]
[Termination "Game drawn by repetition"]

1. e4 {[%clk 0:03:00.2]} 1... e5 {[%clk 0:02:59.6]} 2. Nf3 {[%clk 0:02:57.9]}
2... Nc6 {[%clk 0:02:59.9]} 3. Bb5 {[%clk 0:02:57.8]} 3... a6 {[%clk 0:03:00.2]}
4. Ba4 {[%clk 0:02:58]} 4... Nf6 {[%clk 0:02:59.8]} 5. O-O {[%clk 0:02:49.4]}
5... Nxe4 {[%clk 0:02:59.1]} 6. d4 {[%clk 0:02:44.4]} 6... b5 {[%clk 0:02:59.2]}
7. Bb3 {[%clk 0:02:45.1]} 7... d5 {[%clk 0:02:59.6]} 8. dxe5 {[%clk 0:02:44.3]}
8... Be6 {[%clk 0:03:00.3]} 9. c3 {[%clk 0:02:34.8]} 9... Be7 {[%clk 0:02:59.7]}
10. Be3 {[%clk 0:02:25]} 10... O-O {[%clk 0:02:58.1]} 11. Nbd2 {[%clk
0:02:08.6]} 11... Bg4 {[%clk 0:02:48]} 12. h3 {[%clk 0:01:56.8]} 12... Nxd2
{[%clk 0:02:43.3]} 13. Bxd2 {[%clk 0:01:29.6]} 13... Bxf3 {[%clk 0:02:43.2]} 14.
Qxf3 {[%clk 0:01:29.1]} 14... Nxe5 {[%clk 0:02:43.1]} 15. Qh5 {[%clk 0:01:15.5]}
15... Nc4 {[%clk 0:02:38.8]} 16. Bf4 {[%clk 0:01:13.7]} 16... Bd6 {[%clk
0:02:32.8]} 17. Bg5 {[%clk 0:01:08.9]} 17... Be7 {[%clk 0:02:08.5]} 18. Bxe7
{[%clk 0:00:55.4]} 18... Qxe7 {[%clk 0:02:08.3]} 19. Qxd5 {[%clk 0:00:55.8]}
19... Nxb2 {[%clk 0:02:01.9]} 20. Rfe1 {[%clk 0:00:55.1]} 20... Qf6 {[%clk
0:01:52.6]} 21. Re3 {[%clk 0:00:54.6]} 21... Rad8 {[%clk 0:01:49.4]} 22. Qb7
{[%clk 0:00:52.2]} 22... Nd3 {[%clk 0:01:45.7]} 23. Rf3 {[%clk 0:00:42.9]} 23...
Qb6 {[%clk 0:01:05.3]} 24. Qe4 {[%clk 0:00:38.6]} 24... Nc5 {[%clk 0:01:00.3]}
25. Qe3 {[%clk 0:00:23.4]} 25... Nxb3 {[%clk 0:00:59.4]} 26. Qxb6 {[%clk
0:00:24]} 26... cxb6 {[%clk 0:00:58.8]} 27. axb3 {[%clk 0:00:24.9]} 27... a5
{[%clk 0:00:59.2]} 28. Rf5 {[%clk 0:00:24.8]} 28... Rd6 {[%clk 0:00:31.8]} 29.
Rxb5 {[%clk 0:00:24.5]} 29... Rc8 {[%clk 0:00:31.4]} 30. c4 {[%clk 0:00:24.5]}
30... g6 {[%clk 0:00:30.8]} 31. g3 {[%clk 0:00:20.6]} 31... h5 {[%clk 0:00:30]}
32. h4 {[%clk 0:00:21.1]} 32... Kg7 {[%clk 0:00:29.9]} 33. Kg2 {[%clk
0:00:21.9]} 33... Rcc6 {[%clk 0:00:29.6]} 34. Ra2 {[%clk 0:00:21.1]} 34... Rd3
{[%clk 0:00:29.1]} 35. Kf1 {[%clk 0:00:18.7]} 35... Rf6 {[%clk 0:00:27.8]} 36.
Kg2 {[%clk 0:00:17.7]} 36... Rc3 {[%clk 0:00:26.5]} 37. Kg1 {[%clk 0:00:15.6]}
37... Kf8 {[%clk 0:00:20.1]} 38. Kg2 {[%clk 0:00:15.9]} 38... Kg7 {[%clk
0:00:19.8]} 39. Kg1 {[%clk 0:00:15.5]} 39... Kf8 {[%clk 0:00:13.9]} 40. Kg2
{[%clk 0:00:15.7]} 40... Kg7 {[%clk 0:00:14.3]} 1/2-1/2

[Event "Late-Titled-Tuesday-Blitz-June-25-2024"]
[Site "Chess.com"]
[Date "2024.06.25"]
[Round "3"]
[White "JanistanTV"]
[Black "h4parah5"]
[Result "0-1"]
[WhiteElo "2674"]
[BlackElo "2972"]
[TimeControl "180+1"]
[EndTime "14:27:13 PDT"]
[Termination "h4parah5 won by resignation"]

1. d4 {[%clk 0:03:00.9]} 1... Nf6 {[%clk 0:02:59.5]} 2. c4 {[%clk 0:03:00.1]}
2... e6 {[%clk 0:02:59.9]} 3. Nc3 {[%clk 0:02:59.7]} 3... d5 {[%clk 0:02:58.8]}
4. cxd5 {[%clk 0:02:58.8]} 4... exd5 {[%clk 0:02:59.7]} 5. Bg5 {[%clk
0:02:57.6]} 5... c6 {[%clk 0:02:58.9]} 6. Qc2 {[%clk 0:02:55.4]} 6... h6 {[%clk
0:02:57.2]} 7. Bh4 {[%clk 0:02:54.6]} 7... g6 {[%clk 0:02:54.8]} 8. e3 {[%clk
0:02:49.6]} 8... Bf5 {[%clk 0:02:51.9]} 9. Bd3 {[%clk 0:02:49.2]} 9... Bxd3
{[%clk 0:02:51.1]} 10. Qxd3 {[%clk 0:02:50.1]} 10... Bg7 {[%clk 0:02:50.5]} 11.
Nge2 {[%clk 0:02:50.4]} 11... O-O {[%clk 0:02:50]} 12. O-O {[%clk 0:02:50.5]}
12... Re8 {[%clk 0:02:47.6]} 13. f3 {[%clk 0:02:47.2]} 13... Nbd7 {[%clk
0:02:46.4]} 14. Rad1 {[%clk 0:02:46]} 14... b5 {[%clk 0:02:42]} 15. Kh1 {[%clk
0:02:37.6]} 15... Rc8 {[%clk 0:02:35.9]} 16. a3 {[%clk 0:02:32.9]} 16... a5
{[%clk 0:02:30.9]} 17. Bf2 {[%clk 0:02:30.1]} 17... Nb6 {[%clk 0:02:20]} 18. b3
{[%clk 0:01:54.4]} 18... Qe7 {[%clk 0:02:10.8]} 19. a4 {[%clk 0:01:48.7]} 19...
bxa4 {[%clk 0:02:04.1]} 20. Nxa4 {[%clk 0:01:49.6]} 20... Nxa4 {[%clk
0:02:01.4]} 21. bxa4 {[%clk 0:01:50.5]} 21... Nd7 {[%clk 0:01:59.2]} 22. Rb1
{[%clk 0:01:46.9]} 22... Qe6 {[%clk 0:01:44.4]} 23. Nf4 {[%clk 0:01:29.5]} 23...
Qd6 {[%clk 0:01:43.5]} 24. Rfc1 {[%clk 0:01:24.9]} 24... c5 {[%clk 0:01:13.5]}
25. dxc5 {[%clk 0:01:24.7]} 25... Rxc5 {[%clk 0:01:14.3]} 26. Rxc5 {[%clk
0:01:15.4]} 26... Nxc5 {[%clk 0:01:15.2]} 27. Qb5 {[%clk 0:01:09.9]} 27... Rc8
{[%clk 0:01:05.7]} 28. Qxa5 {[%clk 0:01:01.2]} 28... d4 {[%clk 0:00:53.2]} 29.
exd4 {[%clk 0:01:00]} 29... Nb3 {[%clk 0:00:37.3]} 30. Rxb3 {[%clk 0:00:41.7]}
30... Rc1+ {[%clk 0:00:34.4]} 31. Bg1 {[%clk 0:00:42.1]} 31... Qxf4 {[%clk
0:00:31.4]} 32. Rc3 {[%clk 0:00:15.4]} 32... Rxg1+ {[%clk 0:00:22.4]} 33. Kxg1
{[%clk 0:00:16.3]} 33... Qxd4+ {[%clk 0:00:22.2]} 34. Kf1 {[%clk 0:00:16.6]}
34... Qxc3 {[%clk 0:00:20.7]} 35. Qxc3 {[%clk 0:00:16.5]} 35... Bxc3 {[%clk
0:00:20.5]} 36. Ke2 {[%clk 0:00:17.4]} 36... Ba5 {[%clk 0:00:19.5]} 37. Kd3
{[%clk 0:00:17.9]} 37... Kg7 {[%clk 0:00:19.8]} 38. Kc4 {[%clk 0:00:18.2]} 38...
Kf6 {[%clk 0:00:19.9]} 39. Kb5 {[%clk 0:00:18.6]} 39... Bc7 {[%clk 0:00:19.9]}
40. h3 {[%clk 0:00:18.8]} 40... Ke5 {[%clk 0:00:19.8]} 0-1

[Event "Late-Titled-Tuesday-Blitz-June-25-2024"]
[Site "Chess.com"]
[Date "2024.06.25"]
[Round "3"]
[White "JSPrepz"]
[Black "sammartin99"]
[Result "1-0"]
[WhiteElo "2815"]
[BlackElo "2506"]
[TimeControl "180+1"]
[EndTime "14:27:13 PDT"]
[Termination "JSPrepz won on time"]

1. e4 {[%clk 0:03:00.9]} 1... c5 {[%clk 0:02:59.3]} 2. Nf3 {[%clk 0:03:00.8]}
2... Nc6 {[%clk 0:02:59.4]} 3. b4 {[%clk 0:03:00.6]} 3... Nxb4 {[%clk
0:02:55.4]} 4. c3 {[%clk 0:03:00]} 4... Nc6 {[%clk 0:02:52.7]} 5. d4 {[%clk
0:03:00.5]} 5... cxd4 {[%clk 0:02:51.6]} 6. cxd4 {[%clk 0:03:01.4]} 6... d6
{[%clk 0:02:46.3]} 7. d5 {[%clk 0:03:00.2]} 7... Nb8 {[%clk 0:02:40.1]} 8. Nc3
{[%clk 0:02:57.8]} 8... Nf6 {[%clk 0:02:29.9]} 9. Bg5 {[%clk 0:02:49.3]} 9...
Qa5 {[%clk 0:01:59.1]} 10. Qd2 {[%clk 0:02:37.4]} 10... h6 {[%clk 0:01:52.4]}
11. Bxf6 {[%clk 0:02:34.5]} 11... gxf6 {[%clk 0:01:53.3]} 12. Nd4 {[%clk
0:02:27.8]} 12... f5 {[%clk 0:01:33.2]} 13. Bb5+ {[%clk 0:02:22.2]} 13... Bd7
{[%clk 0:01:26.7]} 14. Bxd7+ {[%clk 0:02:20.1]} 14... Nxd7 {[%clk 0:01:27.6]}
15. Nxf5 {[%clk 0:02:12.9]} 15... Rc8 {[%clk 0:01:25.4]} 16. Rc1 {[%clk
0:02:12.5]} 16... e6 {[%clk 0:01:21.7]} 17. Nd4 {[%clk 0:01:57.6]} 17... Bg7
{[%clk 0:01:13.7]} 18. O-O {[%clk 0:01:55.3]} 18... O-O {[%clk 0:01:13.1]} 19.
dxe6 {[%clk 0:01:49.8]} 19... fxe6 {[%clk 0:01:11.2]} 20. Nxe6 {[%clk
0:01:32.5]} 20... Bxc3 {[%clk 0:00:59]} 21. Qxh6 {[%clk 0:00:51.8]} 21... Qe5
{[%clk 0:00:28.8]} 22. Qg6+ {[%clk 0:00:32.9]} 22... Kh8 {[%clk 0:00:28.7]} 23.
f4 {[%clk 0:00:25]} 23... Qf6 {[%clk 0:00:19.3]} 24. Qh5+ {[%clk 0:00:24.5]}
24... Kg8 {[%clk 0:00:20.1]} 25. Qg4+ {[%clk 0:00:22.4]} 25... Kf7 {[%clk
0:00:14.3]} 26. Nxf8 {[%clk 0:00:16.9]} 26... Bd4+ {[%clk 0:00:06.2]} 27. Kh1
{[%clk 0:00:17.2]} 27... Rxc1 {[%clk 0:00:03.9]} 28. Qxd7+ {[%clk 0:00:17.4]}
28... Kxf8 {[%clk 0:00:04.5]} 29. Rxc1 {[%clk 0:00:17.2]} 29... Bc5 {[%clk
0:00:02.9]} 30. Qc8+ {[%clk 0:00:15.3]} 30... Kg7 {[%clk 0:00:02.9]} 31. Qxb7+
{[%clk 0:00:15.6]} 31... Kh6 {[%clk 0:00:03]} 32. Rf1 {[%clk 0:00:13.6]} 1-0

[Event "Late-Titled-Tuesday-Blitz-June-25-2024"]
[Site "Chess.com"]
[Date "2024.06.25"]
[Round "3"]
[White "LikeWater"]
[Black "LiemLe"]
[Result "0-1"]
[WhiteElo "2705"]
[BlackElo "3026"]
[TimeControl "180+1"]
[EndTime "14:27:14 PDT"]
[Termination "LiemLe won by resignation"]

1. e4 {[%clk 0:03:00.9]} 1... c5 {[%clk 0:02:58.7]} 2. c3 {[%clk 0:03:00.7]}
2... Nf6 {[%clk 0:02:56]} 3. e5 {[%clk 0:03:00.9]} 3... Nd5 {[%clk 0:02:56.6]}
4. Nf3 {[%clk 0:03:01]} 4... e6 {[%clk 0:02:55.7]} 5. d4 {[%clk 0:02:58]} 5...
cxd4 {[%clk 0:02:56.6]} 6. cxd4 {[%clk 0:02:58.4]} 6... b6 {[%clk 0:02:57.1]} 7.
Nc3 {[%clk 0:02:58.1]} 7... Bb7 {[%clk 0:02:39.7]} 8. Bd3 {[%clk 0:02:46.7]}
8... Nxc3 {[%clk 0:02:35.1]} 9. bxc3 {[%clk 0:02:46.5]} 9... d6 {[%clk
0:02:34.3]} 10. O-O {[%clk 0:02:41]} 10... Nd7 {[%clk 0:02:34.5]} 11. Re1 {[%clk
0:02:36.3]} 11... Rc8 {[%clk 0:02:05.7]} 12. c4 {[%clk 0:02:25.3]} 12... dxe5
{[%clk 0:02:04.4]} 13. d5 {[%clk 0:02:04.7]} 13... Bb4 {[%clk 0:01:41.9]} 14.
dxe6 {[%clk 0:02:01]} 14... fxe6 {[%clk 0:01:31.7]} 15. Ng5 {[%clk 0:01:46.7]}
15... Bxe1 {[%clk 0:00:28.2]} 16. Qh5+ {[%clk 0:01:39.9]} 16... g6 {[%clk
0:00:28.6]} 17. Bxg6+ {[%clk 0:01:38.7]} 17... Ke7 {[%clk 0:00:29.2]} 18. Nf7
{[%clk 0:01:10.6]} 18... hxg6 {[%clk 0:00:26.5]} 19. Qxg6 {[%clk 0:01:11.5]}
19... Qg8 {[%clk 0:00:18.2]} 20. Bg5+ {[%clk 0:01:11.7]} 20... Kf8 {[%clk
0:00:18.2]} 21. Nxh8 {[%clk 0:01:06.4]} 21... Qxg6 {[%clk 0:00:18.3]} 22. Nxg6+
{[%clk 0:01:07.3]} 22... Kf7 {[%clk 0:00:18.3]} 23. Ne7 {[%clk 0:01:04.9]} 23...
Bc3 {[%clk 0:00:14.9]} 24. Nxc8 {[%clk 0:01:03.2]} 24... Bxa1 {[%clk 0:00:14.3]}
25. Nd6+ {[%clk 0:01:02.5]} 25... Kg6 {[%clk 0:00:15]} 26. Nxb7 {[%clk
0:00:59.8]} 26... Kxg5 {[%clk 0:00:15]} 27. Nd8 {[%clk 0:01:00.3]} 27... Kf6
{[%clk 0:00:14.9]} 28. Nc6 {[%clk 0:00:59.9]} 28... a5 {[%clk 0:00:13.4]} 29.
Kf1 {[%clk 0:00:59.9]} 29... e4 {[%clk 0:00:13.6]} 30. Ke2 {[%clk 0:01:00]}
30... Ne5 {[%clk 0:00:14.1]} 31. Nb8 {[%clk 0:00:50.2]} 31... Nxc4 {[%clk
0:00:14.5]} 32. h4 {[%clk 0:00:50.5]} 32... Kf5 {[%clk 0:00:13.4]} 33. f3 {[%clk
0:00:48.4]} 33... exf3+ {[%clk 0:00:13.2]} 34. Kxf3 {[%clk 0:00:49.3]} 34...
Ne5+ {[%clk 0:00:12.7]} 35. Ke3 {[%clk 0:00:49.3]} 35... b5 {[%clk 0:00:12.3]}
36. Na6 {[%clk 0:00:49]} 36... b4 {[%clk 0:00:12]} 37. Nc5 {[%clk 0:00:49]}
37... Nc6 {[%clk 0:00:11.6]} 38. Kf3 {[%clk 0:00:47.4]} 38... Nd4+ {[%clk
0:00:07.9]} 39. Kg3 {[%clk 0:00:48]} 39... e5 {[%clk 0:00:07.2]} 40. Kh3 {[%clk
0:00:47.8]} 40... e4 {[%clk 0:00:07.3]} 41. g4+ {[%clk 0:00:48.5]} 41... Kf4
{[%clk 0:00:07.8]} 42. g5 {[%clk 0:00:48.1]} 42... e3 {[%clk 0:00:08.1]} 43. g6
{[%clk 0:00:48.7]} 43... Nf3 {[%clk 0:00:06.6]} 44. h5 {[%clk 0:00:47.9]} 44...
e2 {[%clk 0:00:06.6]} 45. h6 {[%clk 0:00:48.5]} 45... Ke3 {[%clk 0:00:05.5]} 0-1